bitfinex-derivatives/quotes_BTCF0:USTF0_20260315
["timestamp","ask_amount","ask_price","bid_price","bid_amount"]
[1773614661638,0.0014,72415.0,72395.0,0.20861431]
[1773614661843,0.041427,72405.0,72395.0,0.20861431]
[1773614662726,0.041428,72404.0,72395.0,0.20861431]
[1773614663328,0.041427,72405.0,72395.0,0.20861431]
[1773614663532,0.0014,72415.0,72395.0,0.0014]
[1773614663533,0.19970353,72414.0,72395.0,0.0014]
[1773614663739,0.19970353,72408.0,72395.0,0.0014]
[1773614663931,0.041429,72401.0,72389.0,0.0014]
[1773614664436,0.041428,72403.0,72390.0,0.19085927]
[1773614664829,0.0014,72408.0,72390.0,0.19085927]
[1773614665024,0.04143,72401.0,72390.0,0.19085927]
[1773614665539,0.041427,72405.0,72392.0,0.19085927]
[1773614665739,0.041426,72407.0,72392.0,0.23229327]
[1773614665941,0.041427,72406.0,72392.0,0.23229327]
[1773614666533,0.19970353,72408.0,72383.0,0.19085927]
[1773614666726,0.041429,72401.0,72388.0,0.19085927]
[1773614666930,0.19970353,72413.0,72390.0,0.23229427]
[1773614667131,0.0014,72412.0,72390.0,0.23229427]
[1773614667527,0.041429,72401.0,72390.0,0.19085927]
[1773614668039,0.041429,72401.0,72388.0,0.041436]
[1773614668740,0.041429,72401.0,72389.0,0.19085927]
[1773614668942,0.041428,72403.0,72389.0,0.19085927]
[1773614669644,0.041429,72402.0,72389.0,0.19085927]
[1773614669847,0.041429,72402.0,72389.0,0.23229527]
[1773614670547,0.041429,72402.0,72390.0,0.041435]
[1773614670742,0.041429,72402.0,72391.0,0.19085927]
[1773614670944,0.041429,72402.0,72392.0,0.0014]
[1773614671336,0.041429,72402.0,72392.0,0.19225927]
[1773614672749,0.0014,72408.0,72392.0,0.19225927]
[1773614672942,0.041428,72403.0,72392.0,0.19225927]
[1773614673747,0.041429,72402.0,72392.0,0.19225927]
[1773614674045,0.041429,72402.0,72392.0,0.0014]
[1773614674251,0.0014,72408.0,72392.0,0.0014]
[1773614674543,0.041431,72399.0,72392.0,0.0014]
[1773614674748,0.041428,72404.0,72392.0,0.19225927]
[1773614674943,0.20110353,72408.0,72392.0,0.0014]
[1773614675145,0.04143,72400.0,72392.0,0.0014]
[1773614675947,0.19970353,72407.0,72392.0,0.0014]
[1773614676343,0.0014,72412.0,72386.0,0.19085927]
[1773614676652,0.24111853,72426.0,72408.0,0.041425]
[1773614676949,0.22940285,72435.0,72411.0,0.19085927]
[1773614677255,0.19970353,72425.0,72409.0,0.041425]
[1773614677442,0.24111953,72424.0,72410.0,0.0014]
[1773614677847,0.041417,72423.0,72411.0,0.0014]
[1773614678149,0.041417,72423.0,72411.0,0.042823]
[1773614678350,0.19970353,72424.0,72404.0,0.19085927]
[1773614678351,0.041417,72422.0,72409.0,0.041424]
[1773614678650,0.24112153,72422.0,72409.0,0.0014]
[1773614678947,0.19970353,72422.0,72413.0,0.041422]
[1773614679148,0.19970353,72422.0,72411.0,0.041423]
[1773614680053,0.19970353,72427.0,72409.0,0.0014]
[1773614680251,0.041414,72428.0,72392.0,0.2589821]
[1773614680252,0.19970353,72424.0,72397.0,0.19085927]
[1773614680555,0.041417,72423.0,72410.0,0.041424]
[1773614680938,0.24111853,72425.0,72411.0,0.041423]
[1773614681149,0.0014,72424.0,72405.0,0.0014]
[1773614681359,0.0014,72423.0,72414.0,0.041421]
[1773614681645,0.19970353,72425.0,72405.0,0.19225927]
[1773614681848,0.041399,72454.0,72407.0,0.19085927]
[1773614682152,0.041414,72427.0,72408.0,0.0215864]
[1773614682352,0.19970353,72421.0,72409.0,0.0215864]
[1773614682649,0.19970353,72421.0,72403.0,0.0014]
[1773614682850,0.19970353,72418.0,72406.0,0.041426]
[1773614683046,0.04142,72417.0,72395.0,0.19085927]
[1773614683351,0.19970353,72408.0,72395.0,0.041433]
[1773614683749,0.19970353,72408.0,72389.0,0.0014]
[1773614683948,0.19970353,72414.0,72390.0,0.21245022]
[1773614684157,0.19970353,72412.0,72392.0,0.19085927]
[1773614684346,0.19277532,72411.0,72394.0,0.19085927]
[1773614684543,0.042822,72414.0,72395.0,0.21245022]
[1773614684748,0.19283226,72413.0,72396.0,0.02159095]
[1773614684948,0.19970353,72422.0,72397.0,0.21385022]
[1773614685145,0.19970353,72417.0,72404.0,0.041427]
[1773614685346,0.19970353,72417.0,72403.0,0.041428]
[1773614685650,0.0014,72422.0,72403.0,0.0014]
[1773614685651,0.24252153,72422.0,72403.0,0.0014]
[1773614685851,0.041416,72425.0,72403.0,0.19225927]
[1773614686157,0.19970353,72424.0,72403.0,0.19225927]
[1773614686350,0.041405,72443.0,72411.0,0.041423]
[1773614686351,0.19970353,72422.0,72411.0,0.041423]
[1773614686649,0.19970353,72420.0,72388.0,0.19085927]
[1773614686855,0.0014,72422.0,72390.0,0.43698127]
[1773614687050,0.0014,72422.0,72392.0,0.19085927]
[1773614687250,0.0014,72422.0,72402.0,0.19085927]
[1773614687251,0.041418,72422.0,72402.0,0.19085927]
[1773614687445,0.24111953,72424.0,72410.0,0.041424]
[1773614687641,0.19970353,72424.0,72410.0,0.0014]
[1773614688051,0.19970353,72424.0,72413.0,0.041422]
[1773614688549,0.19970353,72424.0,72410.0,0.0014]
[1773614689652,0.19970353,72440.0,72414.0,0.19085927]
[1773614689851,0.041407,72441.0,72428.0,0.041413]
[1773614690060,0.03968652,72456.0,72404.0,0.041427]
[1773614690061,0.24111153,72439.0,72424.0,0.0014]
[1773614690356,0.0014,72442.0,72411.0,0.041423]
[1773614690547,0.19970353,72422.0,72409.0,0.0014]
[1773614691354,0.19970353,72422.0,72414.0,0.041421]
[1773614691548,0.041412,72431.0,72409.0,0.0014]
[1773614691858,0.0014,72430.0,72411.0,0.041423]
[1773614692155,0.2002383,72423.0,72409.0,0.0014]
[1773614692660,0.041423,72413.0,72377.0,0.30600795]
[1773614692853,0.0014,72413.0,72389.0,0.19346707]
[1773614693052,0.0014,72417.0,72403.0,0.041427]
[1773614693252,0.19750229,72425.0,72402.0,0.19346707]
[1773614693559,0.19750229,72423.0,72409.0,0.041424]
[1773614694058,0.19750229,72423.0,72408.0,0.0014]
[1773614694252,0.19750229,72423.0,72402.0,0.09486707]
[1773614694553,0.19750229,72423.0,72409.0,0.041424]
[1773614694748,0.24131829,72425.0,72409.0,0.041424]
[1773614694944,0.0024,72425.0,72409.0,0.0014]
[1773614695149,0.001,72423.0,72412.0,0.041422]
[1773614695351,0.001,72423.0,72417.0,0.04142]
[1773614695542,0.001,72423.0,72409.0,0.19486707]
[1773614695543,0.001,72423.0,72409.0,0.0014]
[1773614695744,0.19750229,72425.0,72413.0,0.041422]
[1773614695946,0.19750229,72429.0,72409.0,0.0014]
[1773614696154,0.19750229,72429.0,72409.0,0.19486707]
[1773614696462,0.14732821,72445.0,72409.0,0.19486707]
[1773614696463,0.14272753,72441.0,72416.0,0.19346707]
[1773614696658,0.19750229,72443.0,72425.0,0.041415]
[1773614696950,0.19750229,72443.0,72404.0,0.041427]
[1773614696951,0.19750229,72439.0,72424.0,0.042815]
[1773614697255,0.19038745,72438.0,72424.0,0.0014]
[1773614697558,0.19038745,72437.0,72424.0,0.042816]
[1773614697752,0.0014,72445.0,72424.0,0.0014]
[1773614697951,0.001,72443.0,72424.0,0.19486707]
[1773614698148,0.18978099,72442.0,72425.0,0.19346707]
[1773614698348,0.001,72443.0,72425.0,0.19346707]
[1773614698549,0.001,72438.0,72425.0,0.19346707]
[1773614698755,0.001,72438.0,72424.0,0.0014]
[1773614698756,0.001,72441.0,72435.0,0.04141]
[1773614698955,0.0014,72456.0,72435.0,0.04141]
[1773614698956,0.0414,72453.0,72438.0,0.041408]
[1773614699153,0.18972926,72452.0,72435.0,0.0014]
[1773614699355,0.18972926,72451.0,72438.0,0.041408]
[1773614699555,0.18972926,72450.0,72438.0,0.041408]
[1773614699749,0.23890229,72452.0,72438.0,0.041408]
[1773614699949,0.18963906,72451.0,72438.0,0.041408]
[1773614700144,0.18963906,72450.0,72435.0,0.0014]
[1773614700345,0.18965733,72449.0,72435.0,0.0014]
[1773614700655,0.19990229,72453.0,72435.0,0.0014]
[1773614700855,0.18965677,72452.0,72435.0,0.0014]
[1773614701058,0.18965677,72451.0,72435.0,0.0014]
[1773614701253,0.19990229,72453.0,72435.0,0.0014]
[1773614701453,0.001,72449.0,72439.0,0.041407]
[1773614701760,0.001,72449.0,72435.0,0.0014]
[1773614701761,0.041395,72461.0,72436.0,0.19346707]
[1773614702053,0.001,72452.0,72436.0,0.19346707]
[1773614702256,0.0014,72467.0,72448.0,0.19346707]
[1773614702568,0.041389,72472.0,72450.0,0.19346707]
[1773614702859,0.18943475,72471.0,72458.0,0.041396]
[1773614703062,0.00068984,72481.0,72460.0,0.19346707]
[1773614703354,8.4e-07,72481.0,72475.0,0.041387]
[1773614703554,0.19750229,72491.0,72472.0,0.0014]
[1773614703764,0.19750229,72483.0,72473.0,0.0014]
[1773614704058,0.041382,72485.0,72471.0,0.0014]
[1773614704354,0.0014,72492.0,72451.0,0.26358407]
[1773614704355,0.04138,72487.0,72470.0,0.19486707]
[1773614704548,0.0014,72492.0,72470.0,0.19486707]
[1773614704549,0.041381,72486.0,72471.0,0.0014]
[1773614704757,0.0014,72492.0,72471.0,0.19486707]
[1773614705263,0.041379,72489.0,72474.0,0.23485407]
[1773614705463,0.042777,72493.0,72477.0,0.23485307]
[1773614705657,0.041377,72493.0,72478.0,0.19486707]
[1773614705958,0.19750229,72497.0,72478.0,0.19486707]
[1773614705959,0.19750229,72497.0,72478.0,0.0014]
[1773614706149,0.14329877,72508.0,72478.0,0.0014]
[1773614706150,0.0014,72498.0,72480.0,0.19346707]
[1773614706350,0.041374,72498.0,72480.0,0.19346707]
[1773614706550,0.19750229,72502.0,72479.0,0.19346707]
[1773614706551,0.0014,72499.0,72479.0,0.19346707]
[1773614706761,0.041377,72493.0,72478.0,0.0014]
[1773614707264,0.041375,72496.0,72478.0,0.042785]
[1773614707450,0.001,72492.0,72478.0,0.042785]
[1773614707762,0.001,72492.0,72480.0,0.041384]
[1773614708058,0.001,72498.0,72484.0,0.041381]
[1773614708260,0.001,72498.0,72485.0,0.0014]
[1773614708766,0.0014,72502.0,72485.0,0.0014]
[1773614708952,0.19750229,72506.0,72485.0,0.0014]
[1773614709151,0.041373,72500.0,72485.0,0.0014]
[1773614709660,0.04137,72505.0,72486.0,0.19346707]
[1773614709854,0.04277,72505.0,72486.0,0.19346707]
[1773614710159,0.04277,72505.0,72487.0,0.04138]
[1773614710160,0.041372,72502.0,72487.0,0.04138]
[1773614710362,0.041371,72503.0,72487.0,0.04138]
[1773614710557,0.04277,72505.0,72489.0,0.041379]
[1773614710753,0.19750229,72520.0,72490.0,0.19346707]
[1773614710969,0.04137,72505.0,72490.0,0.041378]
[1773614711266,0.041369,72507.0,72490.0,0.041378]
[1773614711572,0.041369,72507.0,72491.0,0.041377]
[1773614711965,0.041369,72507.0,72493.0,0.041377]
[1773614712161,0.041368,72509.0,72494.0,0.0014]
[1773614712358,0.041369,72508.0,72494.0,0.0014]
[1773614712558,0.19890229,72513.0,72494.0,0.0014]
[1773614712764,0.041369,72506.0,72494.0,0.0014]
[1773614712959,0.19750229,72518.0,72494.0,0.19486707]
[1773614713266,0.041366,72513.0,72498.0,0.23484107]
[1773614713967,0.041364,72515.0,72499.0,0.041373]
[1773614714167,0.041364,72516.0,72501.0,0.041372]
[1773614714465,0.041366,72513.0,72502.0,0.0014]
[1773614714661,0.041366,72513.0,72503.0,0.0014]
[1773614715167,0.0014,72519.0,72470.0,0.08587605]
[1773614715353,0.0014,72519.0,72450.0,0.31741]
[1773614715354,0.19750229,72507.0,72471.0,0.0014]
[1773614715558,0.13079331,72509.0,72472.0,0.0014]
[1773614715559,0.19750229,72496.0,72472.0,0.0014]
[1773614715766,0.041374,72497.0,72482.0,0.23484907]
[1773614715966,0.041374,72497.0,72483.0,0.19486707]
[1773614716368,0.041375,72496.0,72483.0,0.19486707]
[1773614716568,0.041376,72495.0,72483.0,0.0014]
[1773614717269,0.19750229,72501.0,72483.0,0.0014]
[1773614717270,0.041376,72494.0,72483.0,0.0014]
[1773614717773,0.19750229,72498.0,72483.0,0.0014]
[1773614717961,0.19750229,72488.0,72471.0,0.0014]
[1773614718168,0.041383,72483.0,72472.0,0.0014]
[1773614718475,0.041383,72482.0,72472.0,0.0014]
[1773614718662,0.0014,72491.0,72472.0,0.0014]
[1773614718872,0.041381,72485.0,72472.0,0.19486707]
[1773614719183,0.19750229,72492.0,72468.0,0.19346707]
[1773614719383,0.041383,72483.0,72469.0,0.0014]
[1773614719583,0.041381,72486.0,72472.0,0.041388]
[1773614719782,0.041377,72493.0,72479.0,0.23485107]
[1773614720077,0.0014,72503.0,72481.0,0.19346707]
[1773614720281,0.45736896,72505.0,72482.0,0.0014]
[1773614720282,0.19750229,72500.0,72482.0,0.0014]
[1773614720480,0.19750229,72501.0,72482.0,0.0014]
[1773614720783,0.041376,72495.0,72482.0,0.0014]
[1773614721084,0.19750229,72494.0,72482.0,0.0014]
[1773614721383,0.19750229,72491.0,72477.0,0.0014]
[1773614721580,0.041379,72490.0,72477.0,0.0014]
[1773614721780,0.04138,72488.0,72477.0,0.0014]
[1773614721980,0.041378,72490.0,72477.0,0.0014]
[1773614722182,0.041378,72491.0,72478.0,0.041385]
[1773614722579,0.041377,72493.0,72479.0,0.041384]
[1773614722885,0.0014,72494.0,72477.0,0.0024]
[1773614722886,0.041379,72490.0,72477.0,0.0024]
[1773614723286,0.20819797,72488.0,72469.0,0.0014]
[1773614723483,0.0014,72494.0,72430.0,0.08587605]
[1773614723484,0.041381,72486.0,72468.0,0.19899946]
[1773614723693,0.0014,72494.0,72431.0,0.2458009]
[1773614723694,0.0014,72494.0,72474.0,0.19759946]
[1773614723872,0.041382,72485.0,72470.0,0.04279]
[1773614724185,0.0014,72494.0,72471.0,0.0014]
[1773614724186,0.20819797,72493.0,72471.0,0.0014]
[1773614724389,0.041383,72482.0,72471.0,0.0014]
[1773614724576,0.041384,72481.0,72471.0,0.0014]
[1773614724778,0.041382,72483.0,72471.0,0.0014]
[1773614725689,0.20819797,72493.0,72470.0,0.001]
[1773614725887,0.0014,72494.0,72470.0,0.001]
[1773614725888,0.041385,72478.0,72471.0,0.0014]
[1773614726082,0.20819797,72482.0,72471.0,0.0014]
[1773614726280,0.20819797,72482.0,72470.0,0.001]
[1773614726472,0.041384,72481.0,72470.0,0.001]
[1773614726678,0.20819797,72482.0,72470.0,0.001]
[1773614726880,0.0014,72487.0,72470.0,0.001]
[1773614727080,0.20819797,72486.0,72468.0,0.0014]
[1773614727280,0.20819797,72486.0,72471.0,0.001]
[1773614727678,0.20819797,72492.0,72471.0,0.001]
[1773614727891,0.041381,72485.0,72471.0,0.23898846]
[1773614728078,0.041381,72485.0,72471.0,0.041389]
[1773614728272,0.0014,72492.0,72470.0,0.001]
[1773614728273,0.20819797,72491.0,72470.0,0.04239]
[1773614728479,0.20819797,72488.0,72470.0,0.04139]
[1773614728675,0.20819797,72488.0,72468.0,0.0014]
[1773614728676,0.0014,72492.0,72475.0,0.19759946]
[1773614728998,0.20819797,72508.0,72494.0,0.041376]
[1773614729288,0.04137,72504.0,72489.0,0.19759946]
[1773614729589,0.04137,72504.0,72460.0,0.08587605]
[1773614729590,0.0014,72525.0,72494.0,0.19759946]
[1773614729888,0.20183372,72532.0,72511.0,0.041366]
[1773614729889,0.041357,72528.0,72511.0,0.041366]
[1773614730188,0.00068936,72531.0,72508.0,0.19759946]
[1773614730381,0.00068936,72531.0,72511.0,0.19759946]
[1773614730685,0.00068936,72531.0,72513.0,0.19759946]
[1773614730877,0.00068936,72531.0,72484.0,0.24497435]
[1773614730878,0.00068936,72531.0,72515.0,0.19759946]
[1773614731083,0.00068936,72531.0,72517.0,0.19759946]
[1773614731277,0.00068936,72531.0,72516.0,0.0014]
[1773614731483,0.00068936,72531.0,72517.0,0.19759946]
[1773614731875,0.00068936,72531.0,72517.0,0.23896246]
[1773614732193,0.00068936,72531.0,72516.0,0.0014]
[1773614732194,0.00068936,72531.0,72520.0,0.19759946]
[1773614732690,0.00068936,72531.0,72516.0,0.24036246]
[1773614732873,0.00068936,72531.0,72518.0,0.23896146]
[1773614733074,0.00068936,72531.0,72518.0,0.19759946]
[1773614733691,0.0014,72539.0,72517.0,0.19759946]
[1773614734282,0.04135,72540.0,72517.0,0.19759946]
[1773614735083,0.04135,72540.0,72516.0,0.0014]
[1773614735084,0.0014,72549.0,72524.0,0.19759946]
[1773614735285,0.29528183,72570.0,72516.0,0.0014]
[1773614735286,0.04134,72557.0,72538.0,0.19759946]
[1773614735593,0.041342,72553.0,72539.0,0.0014]
[1773614735782,0.041344,72551.0,72539.0,0.0014]
[1773614736881,0.041342,72554.0,72539.0,0.0014]
[1773614737091,0.43250331,72570.0,72539.0,0.0014]
[1773614737092,0.13722148,72570.0,72540.0,0.19759946]
[1773614737283,0.005,72600.0,72565.0,0.041335]
[1773614737486,0.20819797,72588.0,72559.0,0.19759946]
[1773614737694,0.20819797,72589.0,72562.0,0.19759946]
[1773614737986,0.20819797,72589.0,72564.0,0.19759946]
[1773614738186,0.041326,72583.0,72566.0,0.19759946]
[1773614738396,0.041326,72583.0,72568.0,0.19759946]
[1773614738694,0.042723,72588.0,72570.0,0.19759946]
[1773614738889,0.20819797,72585.0,72555.0,0.0014]
[1773614739091,0.20819797,72587.0,72553.0,0.19759946]
[1773614739289,0.002,72589.0,72553.0,0.19759946]
[1773614739290,0.20959797,72586.0,72554.0,0.041341]
[1773614739490,0.041328,72579.0,72556.0,0.19759946]
[1773614739798,0.041331,72574.0,72556.0,0.19759946]
[1773614740097,0.0014,72576.0,72556.0,0.19759946]
[1773614740290,0.20819797,72571.0,72547.0,0.0014]
[1773614740595,0.20819797,72571.0,72547.0,0.19899946]
[1773614740787,0.0014,72576.0,72508.0,0.275789]
[1773614740788,0.20819797,72565.0,72537.0,0.19759946]
[1773614740993,0.20959797,72564.0,72537.0,0.19759946]
[1773614741196,0.0014,72563.0,72543.0,0.041348]
[1773614741386,0.20819797,72553.0,72527.0,0.19759946]
[1773614741590,0.25776057,72569.0,72522.0,0.19759946]
[1773614741591,0.041352,72536.0,72522.0,0.19759946]
[1773614741895,0.0014,72535.0,72517.0,0.041362]
[1773614742082,0.041349,72542.0,72520.0,0.23896046]
[1773614742596,0.0014,72541.0,72524.0,0.19759946]
[1773614742797,0.0014,72540.0,72524.0,0.19759946]
[1773614742995,0.0014,72540.0,72515.0,0.0014]
[1773614742996,0.0014,72539.0,72518.0,0.041362]
[1773614743191,0.0014,72538.0,72518.0,0.23896146]
[1773614743497,0.20819797,72549.0,72524.0,0.19759946]
[1773614743790,0.041346,72547.0,72528.0,0.19759946]
[1773614743998,0.20819797,72542.0,72516.0,0.19759946]
[1773614744193,0.0014,72541.0,72521.0,0.04136]
[1773614744388,0.041345,72550.0,72525.0,0.041358]
[1773614744698,0.20819797,72545.0,72524.0,0.041359]
[1773614744895,0.24954597,72543.0,72521.0,0.04136]
[1773614745094,0.0014,72544.0,72516.0,0.19759946]
[1773614745290,0.042748,72543.0,72518.0,0.19759946]
[1773614745997,0.0014,72542.0,72529.0,0.23895546]
[1773614746196,0.20819797,72552.0,72529.0,0.23895546]
[1773614746499,0.041345,72548.0,72529.0,0.23895546]
[1773614747391,0.0014,72547.0,72529.0,0.041356]
[1773614747594,0.20819797,72562.0,72532.0,0.041354]
[1773614747894,0.24954097,72552.0,72532.0,0.041354]
[1773614748094,0.20819797,72550.0,72532.0,0.041354]
[1773614748498,0.20819797,72550.0,72534.0,0.041353]
[1773614748696,0.20819797,72550.0,72531.0,0.041355]
[1773614748993,0.20959797,72549.0,72530.0,0.041355]
[1773614749396,0.041345,72548.0,72530.0,0.041355]
[1773614749602,0.20819797,72548.0,72532.0,0.041354]
[1773614749801,0.20819797,72546.0,72532.0,0.041354]
[1773614749996,0.20819797,72541.0,72525.0,0.041358]
[1773614750197,0.20819797,72539.0,72519.0,0.041361]
[1773614750407,0.24955097,72534.0,72515.0,0.19759946]
[1773614750599,0.24955197,72532.0,72514.0,0.041364]
[1773614750800,0.20819797,72530.0,72504.0,0.04137]
[1773614751098,0.20819797,72524.0,72501.0,0.0014]
[1773614751298,0.20819797,72519.0,72500.0,0.041373]
[1773614751507,0.20959797,72518.0,72500.0,0.041373]
[1773614751692,0.04136,72522.0,72504.0,0.04137]
[1773614751891,0.04136,72522.0,72500.0,0.19759946]
[1773614751892,0.0014,72521.0,72503.0,0.041371]
[1773614752088,0.0014,72521.0,72505.0,0.04137]
[1773614752292,0.19502789,72521.0,72502.0,0.041371]
[1773614752595,0.19502789,72521.0,72500.0,0.001]
[1773614752903,0.19332122,72514.0,72500.0,0.001]
[1773614753097,0.0014,72513.0,72500.0,0.19683238]
[1773614753298,0.0014,72512.0,72500.0,0.001]
[1773614753493,0.19472122,72511.0,72500.0,0.001]
[1773614753799,0.0014,72510.0,72494.0,0.041376]
[1773614754004,0.0014,72509.0,72489.0,0.19583238]
[1773614754305,0.0014,72508.0,72493.0,0.041377]
[1773614754501,0.0014,72508.0,72495.0,0.041375]
[1773614755301,0.0014,72507.0,72492.0,0.041377]
[1773614755506,0.0014,72506.0,72485.0,0.19583238]
[1773614755695,0.19332122,72504.0,72481.0,0.00068984]
[1773614755900,0.041375,72497.0,72481.0,0.00068984]
[1773614756401,0.19332122,72496.0,72481.0,0.00068984]
[1773614756608,0.041377,72492.0,72481.0,0.00068984]
[1773614756795,0.0014,72491.0,72481.0,0.00068984]
[1773614756996,0.041376,72495.0,72481.0,0.19652222]
[1773614757194,0.042777,72494.0,72481.0,0.19652222]
[1773614757396,0.041377,72492.0,72475.0,0.041387]
[1773614757703,0.00011552,72493.0,72478.0,0.041385]
[1773614757900,0.00011552,72493.0,72478.0,0.19583238]
[1773614758101,0.00011552,72493.0,72480.0,0.19583238]
[1773614758300,0.00011552,72493.0,72479.0,0.041384]
[1773614758301,0.0014,72492.0,72477.0,0.041385]
[1773614758608,0.0014,72492.0,72479.0,0.041384]
[1773614758904,0.0014,72492.0,72481.0,0.041383]
[1773614759102,0.00011552,72493.0,72482.0,0.041383]
[1773614759302,0.00011552,72493.0,72482.0,0.23721538]
[1773614759502,0.00011552,72493.0,72482.0,0.19583238]
[1773614760119,0.0014,72508.0,72492.0,0.19583238]
[1773614760302,0.041366,72512.0,72497.0,0.041374]
[1773614760507,0.042767,72511.0,72496.0,0.041374]
[1773614760805,0.19263186,72523.0,72498.0,0.19583238]
[1773614761003,0.041361,72522.0,72508.0,0.041368]
[1773614761306,0.0014,72521.0,72499.0,0.19583238]
[1773614761506,0.23392662,72539.0,72498.0,0.0014]
[1773614761507,0.04136,72522.0,72507.0,0.041368]
[1773614761904,0.04136,72522.0,72504.0,0.19583238]
[1773614761905,0.041359,72524.0,72504.0,0.19583238]
[1773614762094,0.0014,72523.0,72499.0,0.19583238]
[1773614762299,0.19332122,72530.0,72500.0,0.19583238]
[1773614762498,0.041358,72526.0,72511.0,0.041366]
[1773614762692,0.0014,72525.0,72511.0,0.041366]
[1773614762905,0.19332122,72529.0,72507.0,0.19583238]
[1773614762906,0.041357,72528.0,72507.0,0.19583238]
[1773614763101,0.0014,72524.0,72507.0,0.19583238]
[1773614763310,0.0014,72523.0,72507.0,0.19583238]
[1773614763511,0.0014,72523.0,72512.0,0.041365]
[1773614763709,0.041351,72539.0,72507.0,0.19583238]
[1773614763909,0.04135,72540.0,72509.0,0.19583238]
[1773614764306,0.0014,72539.0,72526.0,0.041357]
[1773614764507,0.0014,72539.0,72527.0,0.041357]
[1773614764812,0.041342,72553.0,72529.0,0.19583238]
[1773614765013,0.041344,72551.0,72538.0,0.041351]
[1773614765202,0.0014,72550.0,72538.0,0.19583238]
[1773614765403,0.0014,72550.0,72539.0,0.19583238]
[1773614765702,0.19332122,72558.0,72535.0,0.19583238]
[1773614765906,0.041326,72583.0,72541.0,0.19583238]
[1773614766109,0.19332122,72582.0,72544.0,0.19583238]
[1773614766313,0.19332122,72580.0,72544.0,0.19583238]
[1773614766505,0.27888947,72580.0,72544.0,0.19583238]
[1773614766712,0.19332122,72579.0,72544.0,0.19583238]
[1773614766914,0.19332122,72565.0,72544.0,0.19583238]
[1773614767111,0.19332122,72563.0,72536.0,0.0014]
[1773614767311,0.19332122,72561.0,72539.0,0.04135]
[1773614767513,0.19332122,72555.0,72533.0,0.041353]
[1773614767705,0.19332122,72553.0,72534.0,0.041353]
[1773614767904,0.041345,72549.0,72534.0,0.041353]
[1773614768106,0.041347,72545.0,72530.0,0.041355]
[1773614768306,0.19472122,72549.0,72525.0,0.19583238]
[1773614768502,0.19332122,72548.0,72522.0,0.19583238]
[1773614768818,0.041348,72544.0,72527.0,0.041357]
[1773614769010,0.19472122,72543.0,72523.0,0.041359]
[1773614769207,0.0014,72542.0,72523.0,0.041359]
[1773614769403,0.19332122,72541.0,72518.0,0.041362]
[1773614769603,0.041351,72538.0,72524.0,0.041358]
[1773614769812,0.04134,72558.0,72518.0,0.0014]
[1773614769813,0.041354,72532.0,72518.0,0.0014]
[1773614770021,0.0014,72534.0,72517.0,0.19723238]
[1773614770211,0.0014,72534.0,72520.0,0.23719338]
[1773614770914,0.0014,72534.0,72493.0,0.16145197]
[1773614770915,0.041361,72522.0,72505.0,0.19583238]
[1773614771111,0.0014,72524.0,72508.0,0.041368]
[1773614771414,0.0014,72524.0,72505.0,0.0014]
[1773614771716,0.04136,72522.0,72508.0,0.19583238]
[1773614772221,0.041361,72521.0,72508.0,0.19583238]
[1773614772406,0.26129033,72539.0,72508.0,0.19583238]
[1773614772611,0.041357,72529.0,72505.0,0.0014]
[1773614772819,0.0014,72529.0,72506.0,0.19583238]
[1773614773011,0.041357,72528.0,72513.0,0.041365]
[1773614773211,0.0014,72527.0,72514.0,0.041364]
[1773614773917,0.0014,72527.0,72505.0,0.0014]
[1773614773918,0.04136,72523.0,72505.0,0.0014]
[1773614774114,0.04136,72523.0,72505.0,0.19723238]
[1773614774420,0.041358,72526.0,72505.0,0.19723238]
[1773614774718,0.041358,72526.0,72511.0,0.23719838]
[1773614774914,0.04136,72523.0,72509.0,0.041367]
[1773614775124,0.041359,72524.0,72506.0,0.19583238]
[1773614775323,0.19332122,72532.0,72506.0,0.19583238]
[1773614775620,0.041357,72528.0,72513.0,0.23719738]
[1773614775814,0.0014,72527.0,72514.0,0.041364]
[1773614776021,0.0014,72526.0,72514.0,0.23719638]
[1773614776521,0.0014,72525.0,72514.0,0.23719638]
[1773614776721,0.0014,72525.0,72505.0,0.0014]
[1773614776722,0.0014,72525.0,72515.0,0.041364]
[1773614776921,0.0014,72525.0,72516.0,0.19583238]
[1773614777424,0.0014,72525.0,72515.0,0.041364]
[1773614777425,0.0014,72525.0,72506.0,0.19583238]
[1773614777718,0.0014,72525.0,72507.0,0.041368]
[1773614777917,0.041359,72524.0,72509.0,0.041367]
[1773614778622,0.041359,72524.0,72510.0,0.041367]
[1773614779120,0.0014,72525.0,72507.0,0.19583238]
[1773614779323,0.0014,72526.0,72513.0,0.23719738]
[1773614779515,0.0014,72526.0,72511.0,0.041366]
[1773614779825,0.0014,72526.0,72508.0,0.19583238]
[1773614779826,0.042758,72526.0,72512.0,0.041365]
[1773614780123,0.19472122,72526.0,72509.0,0.041367]
[1773614780326,0.0014,72526.0,72510.0,0.041367]
[1773614780622,0.0014,72526.0,72508.0,0.041368]
[1773614780817,0.19472122,72526.0,72509.0,0.041367]
[1773614781020,0.19332122,72525.0,72506.0,0.041369]
[1773614781219,0.19332122,72525.0,72503.0,0.19583238]
[1773614781527,0.041361,72522.0,72503.0,0.19583238]
[1773614782014,0.041361,72521.0,72503.0,0.19174035]
[1773614782214,0.041361,72520.0,72507.0,0.23310835]
[1773614782643,0.041359,72524.0,72510.0,0.041367]
[1773614783018,0.0014,72526.0,72507.0,0.19174035]
[1773614783214,0.041357,72528.0,72509.0,0.041367]
[1773614783413,0.13717781,72540.0,72502.0,0.0014]
[1773614783414,0.0014,72533.0,72523.0,0.19174035]
[1773614783620,0.0014,72533.0,72522.0,0.04136]
[1773614783621,0.20356824,72541.0,72522.0,0.04136]
[1773614783820,0.041353,72535.0,72522.0,0.04136]
[1773614784219,0.0014,72536.0,72521.0,0.19174035]
[1773614785129,0.042753,72536.0,72523.0,0.041359]
[1773614785325,0.042753,72536.0,72516.0,0.0014]
[1773614785326,0.04135,72540.0,72517.0,0.19174035]
[1773614785522,0.042349,72541.0,72517.0,0.19174035]
[1773614785714,0.04275,72540.0,72517.0,0.19174035]
[1773614785914,0.04275,72540.0,72524.0,0.041358]